fUST/lending_fUST_20250727
["ID","MTS","AMOUNT","RATE_DAILY","PERIOD"]
[375207881,1753585855493,-460.0,0.00021643,2]
[375207882,1753585855502,-460.0,0.00021643,2]
[375207883,1753585855512,-466.47,0.00021643,2]
[375207884,1753585855522,-460.0,0.00021643,2]
[375207885,1753585855531,-460.0,0.00021643,2]
[375207886,1753585855540,-460.0,0.00021643,2]
[375207887,1753585855550,-460.0,0.00021643,2]
[375207888,1753585855560,-460.0,0.00021643,2]
[375207889,1753585855570,-460.0,0.00021643,2]
[375207890,1753585855579,-649.59,0.00021643,2]
[375207891,1753585855589,-460.0,0.00021643,2]
[375207892,1753585855599,-469.6331722,0.00021643,2]
[375207893,1753585855859,-383.73,0.00019178,2]
[375207894,1753585855885,-76.27,0.00019178,2]
[375207895,1753585855896,-460.0,0.00019178,2]
[375207896,1753585855905,-460.0,0.00019178,2]
[375207897,1753585855915,-461.57647356,0.00019178,2]
[375207898,1753585855926,-435.88456167,0.00019178,2]
[375207899,1753585855935,-171.34,0.00019452,2]
[375207900,1753585855945,-460.0,0.00019452,2]
[375207901,1753585855954,-460.0,0.00019452,2]
[375207902,1753585855965,-460.0,0.00019726,2]
[375207903,1753585855976,-460.0,0.00019726,2]
[375207904,1753585855985,-492.0,0.00019863,2]
[375207905,1753585855995,-460.0,0.0002,2]
[375207906,1753585856006,-460.0,0.0002,2]
[375207907,1753585856016,-220.26,0.00020273,2]
[375207908,1753585856025,-253.3868278,0.00021643,2]
[375207909,1753585856034,-678.43,0.00021643,2]
[375207910,1753585856044,-460.0,0.00021643,2]
[375207911,1753585856053,-460.0,0.00021643,2]
[375207912,1753585856062,-460.0,0.00021643,2]
[375207913,1753585856072,-338.9867747,0.00021643,2]
[375207914,1753585856081,-460.0,0.00021643,2]
[375207915,1753585856092,-460.0,0.00021643,2]
[375207916,1753585856101,-460.0,0.00021643,2]
[375207917,1753585856111,-313.86264947,0.00021643,2]
[375207918,1753585856121,-460.0,0.00021643,2]
[375207919,1753585856131,-3087.7,0.00021643,2]
[375207920,1753585856141,-460.0,0.00021643,2]
[375207921,1753585856150,-638.57,0.00021643,2]
[375207922,1753585856159,-504.77,0.00021643,2]
[375207923,1753585856170,-1104.21,0.00021643,2]
[375207924,1753585856179,-460.0,0.00021643,2]
[375207925,1753585856188,-460.0,0.00021643,2]
[375207926,1753585856197,-1669.01,0.00021643,2]
[375207927,1753585856207,-460.0,0.00021643,2]
[375207928,1753585856218,-568.61123745,0.00021643,2]
[375207929,1753585856227,-460.0,0.00021643,2]
[375207930,1753585856237,-460.0,0.00021643,2]
[375207931,1753585856246,-460.0,0.00021643,2]
[375207932,1753585856255,-333.95,0.00021643,2]
[375207933,1753585856265,-1530.09,0.00021643,2]
[375207934,1753585856274,-489.58,0.00021643,2]
[375207935,1753585856284,-460.0,0.00021643,2]
[375207936,1753585856293,-2196.33,0.00021643,2]
[375207937,1753585856302,-737.36,0.00021643,2]
[375207938,1753585856311,-805.96,0.00021643,2]
[375207939,1753585856321,-1014.32648043,0.00021643,2]
[375207940,1753585856642,-1985.08351957,0.00021643,2]
[375207941,1753585856654,-316.78184182,0.00021643,2]
[375207942,1753585856663,-4733.4,0.00021643,2]
[375207943,1753585856672,-87.75412278,0.00021643,2]
[375207944,1753585856684,-372.24587722,0.00021643,2]
[375207945,1753585856694,-1210.32,0.00021643,2]
[375207946,1753585856703,-460.0,0.00021643,2]
[375207947,1753585856713,-484.95,0.00021643,2]
[375207948,1753585856722,-954.16,0.00021643,2]
[375207949,1753585856731,-787.14,0.00021643,2]
[375207950,1753585856740,-575.17,0.00021643,2]
[375207951,1753585856749,-1569.82,0.00021643,2]
[375207952,1753585856759,-460.0,0.00021643,2]
[375207953,1753585856768,-630.99012278,0.00021643,2]
[375207954,1753585892304,273.073588,0.00018008,2]
[375207955,1753585958630,-405.0,0.00019,2]
[375207960,1753586025340,-337.54253002,0.00018977,2]
[375207961,1753586025367,-0.45746998,0.00019,2]
[375207962,1753586153675,-150.0,0.0001864,2]
[375207963,1753586153698,-19.0,0.00019,2]
[375207964,1753586220768,-204.18902143,0.00018977,2]
[375207965,1753586220789,-1017.81097857,0.0001901,2]
[375207966,1753586349015,-999.0,0.00019,2]
[375207967,1753586349037,-200.29850873,0.0001901,2]
[375207968,1753586349060,-337.69,0.00019068,3]
[375207969,1753586349082,-168.84,0.00019068,3]
[375207970,1753586349105,-506.57,0.00019068,3]
[375207971,1753586349126,-295.48,0.00019068,3]
[375207972,1753586349147,-886.46,0.00019068,3]
[375207973,1753586349167,-500.0,0.00019073,2]
[375207974,1753586349188,-219.28590855,0.00019073,2]
[375207975,1753586349210,-500.0,0.00019075,2]
[375207976,1753586349234,-500.0,0.00019075,2]
[375207977,1753586349256,-531.52653337,0.00019075,2]
[375207978,1753586349278,-1200.0,0.00019075,2]
[375207979,1753586349298,-1200.0,0.00019075,2]
[375207980,1753586349319,-44351.58749445,0.00019076,2]
[375207981,1753586349340,-300.0,0.00019076,2]
[375207982,1753586349498,-300.0,0.00019076,2]
[375207983,1753586349521,-300.0,0.00019076,2]
[375207984,1753586349544,-442.69855898,0.00019077,2]
[375207985,1753586349567,-500.0,0.00019077,2]
[375207986,1753586349590,-604.24200391,0.00019077,2]
[375207987,1753586349611,-500.0,0.00019077,2]
[375207988,1753586349632,-500.0,0.00019077,2]
[375207989,1753586349653,-21885.32099201,0.00019078,2]
[375207990,1753586365092,10000.0,0.00018,10]
[375207991,1753586373470,10000.0,0.00018,10]
[375207992,1753586382886,4941.25023058,0.00018,10]
[375207993,1753586382907,5058.74976942,0.00018,10]
[375207994,1753586392455,10000.0,0.00018,10]
[375207995,1753586408525,10000.0,0.00018,10]
[375207996,1753586416758,10000.0,0.00018,10]
[375207997,1753586418540,191.703011,0.00013699,2]
[375207998,1753586424386,4749.54721958,0.00018,10]
[375207999,1753586424411,5250.45278042,0.00018,10]
[375208001,1753586433466,10000.0,0.00018,10]
[375208002,1753586441789,10000.0,0.00018,10]
[375208003,1753586450613,10000.0,0.00018,10]
[375208004,1753586453650,-150.0,0.00018681,2]
[375208005,1753586453675,-1835.0,0.00018882,2]
[375208007,1753586499727,1002.8,0.00018,10]
[375208008,1753586523181,-150.0,0.00018692,2]
[375208009,1753586523203,-215.41042808,0.00018872,2]
[375208010,1753586523225,-3165.0,0.00018882,2]
[375208011,1753586523247,-188.13149748,0.00018895,2]
[375208012,1753586523267,-188.13149748,0.0001894,2]
[375208013,1753586523288,-188.13149748,0.00018984,2]
[375208014,1753586523311,-638.19507948,0.00018995,2]
[375208015,1753586586858,-233.70346677,0.00018061,2]
[375208016,1753586588416,-6803.42670353,0.00018061,2]
[375208017,1753586588436,-180.57329647,0.00018581,2]
[375208018,1753586664899,-412.30116809,0.00018241,2]
[375208019,1753586668286,-191.13294555,0.00018241,2]
[375208020,1753586670109,-14.9491123,0.00018241,2]
[375208021,1753586717206,-250.89026766,0.00018395,2]
[375208022,1753586719490,-194.69729419,0.00018395,2]
[375208023,1753586723479,-300.0,0.00018395,2]
[375208024,1753586725530,-164.95781901,0.00018395,2]
[375208025,1753586732864,-207.67061235,0.00018395,2]
[375208026,1753586734515,-164.16062004,0.00018395,2]
[375208028,1753586833087,-1186.90200348,0.00018395,2]
[375208029,1753586869968,3746.74721958,0.00018,2]
[375208030,1753586869994,8021.2757643,0.00018,2]
[375208031,1753586907061,5000.0,0.0001801,2]
[375208032,1753586922444,5000.0,0.0001801,2]
[375208034,1753586937508,5000.0,0.0001801,2]
[375208035,1753586952880,5000.0,0.0001801,2]
[375208036,1753586966396,163.121217,0.00017673,2]
[375208037,1753586969878,5000.0,0.0001801,2]
[375208043,1753586986654,5000.0,0.0001801,2]
[375208044,1753587001960,1815.6030187,0.0001801,2]
[375208045,1753587001984,3184.3969813,0.0001801,2]
[375208046,1753587017174,5000.0,0.0001801,2]
[375208066,1753587031877,-189.580205,0.0001818,2]
[375208067,1753587031887,-273.0735887,0.0001822,2]
[375208068,1753587031896,-289.46932706,0.00018333,2]
[375208069,1753587031906,-21.96225239,0.00018581,2]
[375208070,1753587031916,-197.87053435,0.00018705,2]
[375208071,1753587031927,-150.0,0.00018878,2]
[375208072,1753587031936,-599.34129837,0.000189,2]
[375208073,1753587031945,-300.0,0.00018977,2]
[375208074,1753587031955,-300.0,0.00018977,2]
[375208075,1753587031964,-1200.0,0.00018977,2]
[375208076,1753587031973,-210.99080478,0.00018978,2]
[375208077,1753587031983,-316.13799231,0.00018978,2]
[375208078,1753587031992,-2376.89561221,0.00018978,2]
[375208079,1753587032001,-3800.96294335,0.00018978,2]
[375208080,1753587033424,5000.0,0.0001801,2]
[375208111,1753587037673,-3182.61783006,0.00018978,2]
[375208113,1753587037682,-613985.22347429,0.0001903,2]
[375208124,1753587037781,-1501.05072891,0.0001903,2]
[375208126,1753587037791,-1200.0,0.00019067,2]
[375208128,1753587037801,-160.0,0.00019068,2]
[375208131,1753587037811,-590.96,0.00019068,3]
[375208132,1753587037821,-481.43,0.00019068,3]
[375208135,1753587037833,-500.0,0.00019073,2]
[375208136,1753587037843,-155.0,0.00019078,2]
[375208138,1753587037852,-2967.55927109,0.00019078,2]
[375208141,1753587037864,-345147.1197369,0.00019078,2]
[375208143,1753587037873,-837.13758042,0.00019078,2]
[375208144,1753587037884,-500.0,0.00019173,2]
[375208147,1753587037894,-500.0,0.00019173,2]
[375208149,1753587037904,-500.0,0.00019173,2]
[375208150,1753587037913,-155.0,0.00019177,2]
[375208152,1753587037923,-460.0,0.00019178,2]
[375208155,1753587037933,-460.0,0.00019178,2]
[375208156,1753587037942,-475.94306714,0.00019178,2]
[375208158,1753587037952,-460.0,0.00019178,2]
[375208160,1753587037961,-460.0,0.00019178,2]
[375208162,1753587037971,-460.0,0.00019178,2]
[375208164,1753587037980,-460.0,0.00019178,2]
[375208166,1753587037989,-460.0,0.00019178,2]
[375208169,1753587037999,-461.31772335,0.00019178,2]
[375208170,1753587038008,-460.0,0.00019178,2]
[375208172,1753587038017,-460.0,0.00019178,2]
[375208174,1753587038027,-460.0,0.00019178,2]
[375208177,1753587038037,-460.0,0.00019178,2]
[375208178,1753587038046,-402.04809729,0.00019178,2]
[375208180,1753587038056,-460.0,0.00019178,2]
[375208183,1753587038068,-460.0,0.00019178,2]
[375208185,1753587038078,-460.0,0.00019178,2]
[375208187,1753587038087,-460.0,0.00019178,2]
[375208189,1753587038096,-460.0,0.00019178,2]
[375208191,1753587038106,-460.0,0.00019178,2]
[375208192,1753587038115,-460.0,0.00019178,2]
[375208194,1753587038125,-458.03369894,0.00019178,2]
[375208196,1753587038134,-460.95702724,0.00019178,2]
[375208198,1753587038144,-460.0,0.00019178,2]
[375208200,1753587038153,-460.0,0.00019178,2]
[375208203,1753587038164,-460.0,0.00019178,2]
[375208204,1753587038177,-460.0,0.00019178,2]
[375208206,1753587038186,-460.0,0.00019178,2]
[375208208,1753587038196,-460.0,0.00019178,2]
[375208210,1753587038206,-465.89590882,0.00019178,2]
[375208212,1753587038215,-460.0,0.00019178,2]
[375208214,1753587038225,-2236.55,0.00019178,2]
[375208216,1753587038234,-478.27,0.00019178,2]
[375208219,1753587038244,-718.26,0.00019178,2]
[375208221,1753587038253,-496.49834322,0.00019178,2]
[375208223,1753587038263,-460.0,0.00019178,2]
[375208224,1753587038273,-460.0,0.00019178,2]
[375208226,1753587038282,-460.0,0.00019178,2]
[375208228,1753587038291,-460.0,0.00019178,2]
[375208230,1753587038300,-460.0,0.00019178,2]
[375208232,1753587038309,-460.0,0.00019178,2]
[375208234,1753587038318,-460.0,0.00019178,2]
[375208236,1753587038328,-460.0,0.00019178,2]
[375208238,1753587038337,-2902.9,0.00019178,2]
[375208240,1753587038346,-460.0,0.00019178,2]
[375208242,1753587038356,-460.0,0.00019178,2]
[375208244,1753587038366,-460.0,0.00019178,2]
[375208246,1753587038376,-460.0,0.00019178,2]
[375208248,1753587038386,-460.0,0.00019178,2]
[375208250,1753587038395,-460.0,0.00019178,2]
[375208252,1753587038404,-460.0,0.00019178,2]
[375208254,1753587038414,-988.28,0.00019178,2]
[375208256,1753587038424,-460.0,0.00019178,2]
[375208258,1753587038434,-460.0,0.00019178,2]
[375208260,1753587038443,-460.0,0.00019178,2]
[375208262,1753587038452,-460.0,0.00019178,2]
[375208264,1753587038461,-460.81711192,0.00019178,2]
[375208266,1753587038471,-460.0,0.00019178,2]
[375208268,1753587038481,-460.0,0.00019178,2]
[375208270,1753587038491,-460.0,0.00019178,2]
[375208272,1753587038500,-460.0,0.00019178,2]
[375208274,1753587038510,-460.0,0.00019178,2]
[375208276,1753587038520,-460.0,0.00019178,2]
[375208278,1753587038529,-490.22,0.00019178,2]
[375208280,1753587038538,-460.0,0.00019178,2]
[375208282,1753587038547,-460.0,0.00019178,2]
[375208284,1753587038557,-460.0,0.00019178,2]
[375208286,1753587038567,-537.20038046,0.00019178,2]
[375208288,1753587038576,-460.0,0.00019178,2]
[375208290,1753587038585,-474.12072003,0.00019178,2]
[375208292,1753587038594,-651.13,0.00019178,2]
[375208294,1753587038604,-806.48,0.00019178,2]
[375208296,1753587038614,-460.0,0.00019178,2]
[375208298,1753587038623,-460.0,0.00019178,2]
[375208300,1753587038631,-460.0,0.00019178,2]
[375208302,1753587038641,-473.69685755,0.00019178,2]
[375208304,1753587038650,-460.0,0.00019178,2]
[375208306,1753587038659,-3587.13,0.00019178,2]
[375208308,1753587038668,-460.0,0.00019178,2]
[375208310,1753587038677,-460.0,0.00019178,2]
[375208312,1753587038687,-557.95,0.00019178,2]
[375208314,1753587038696,-460.0,0.00019178,2]
[375208315,1753587038706,-460.0,0.00019178,2]
[375208317,1753587038715,-558.99,0.00019178,2]
[375208319,1753587038724,-460.0,0.00019178,2]
[375208321,1753587038733,-460.0,0.00019178,2]
[375208323,1753587038742,-460.0,0.00019178,2]
[375208325,1753587038752,-460.0,0.00019178,2]
[375208327,1753587038760,-837.57,0.00019178,2]
[375208329,1753587038769,-460.0,0.00019178,2]
[375208331,1753587038779,-460.0,0.00019178,2]
[375208333,1753587038788,-460.0,0.00019178,2]
[375208335,1753587038797,-460.0,0.00019178,2]
[375208337,1753587038807,-2201.77,0.00019178,2]
[375208339,1753587038816,-460.0,0.00019178,2]
[375208342,1753587038829,-460.0,0.00019178,2]
[375208344,1753587038838,-608.88,0.00019178,2]
[375208346,1753587038848,-460.0,0.00019178,2]
[375208348,1753587038857,-460.0,0.00019178,2]
[375208350,1753587038866,-460.0,0.00019178,2]
[375208352,1753587038877,-460.0,0.00019178,2]
[375208354,1753587038886,-460.0,0.00019178,2]
[375208356,1753587038895,-460.0,0.00019178,2]
[375208358,1753587038905,-460.0,0.00019178,2]
[375208360,1753587038914,-460.0,0.00019178,2]
[375208362,1753587038923,-460.0,0.00019178,2]
[375208364,1753587038933,-455.0,0.00019178,2]
[375208366,1753587038942,-460.0,0.00019178,2]
[375208367,1753587038951,-460.0,0.00019178,2]
[375208370,1753587038961,-460.0,0.00019178,2]
[375208371,1753587038970,-460.0,0.00019178,2]
[375208374,1753587038980,-935.74,0.00019178,2]
[375208375,1753587038990,-460.0,0.00019178,2]
[375208377,1753587038999,-424.15732805,0.00019178,2]
[375208380,1753587039008,-703.91,0.00019178,2]
[375208382,1753587039018,-467.27,0.00019178,2]
[375208384,1753587039029,-460.0,0.00019178,2]
[375208386,1753587039038,-460.0,0.00019178,2]
[375208388,1753587039047,-460.0,0.00019178,2]
[375208390,1753587039056,-460.0,0.00019178,2]
[375208391,1753587039066,-465.12329507,0.00019178,2]
[375208393,1753587039076,-516.45,0.00019178,2]
[375208395,1753587039085,-460.0,0.00019178,2]
[375208397,1753587039095,-460.0,0.00019178,2]
[375208399,1753587039104,-460.0,0.00019178,2]
[375208401,1753587039113,-460.0,0.00019178,2]
[375208403,1753587039122,-460.0,0.00019178,2]
[375208405,1753587039132,-210.27174442,0.00019178,2]
[375208407,1753587039141,-460.0,0.00019178,2]
[375208409,1753587039151,-877.37,0.00019178,2]
[375208412,1753587039160,-460.0,0.00019178,2]
[375208413,1753587039174,-5680.4,0.00019178,2]
[375208415,1753587039183,-529.95,0.00019178,2]
[375208417,1753587039193,-460.0,0.00019178,2]
[375208419,1753587039203,-607.14,0.00019178,2]
[375208421,1753587039212,-467.2535037,0.00019178,2]
[375208423,1753587039223,-460.0,0.00019178,2]
[375208425,1753587039232,-708.23,0.00019178,2]
[375208427,1753587039242,-460.0,0.00019178,2]
[375208430,1753587039251,-1100.63,0.00019178,2]
[375208432,1753587039261,-1106.34,0.00019178,2]
[375208433,1753587039270,-460.0,0.00019178,2]
[375208435,1753587039279,-460.0,0.00019178,2]
[375208437,1753587039289,-460.0,0.00019178,2]
[375208439,1753587039298,-3155.5,0.00019178,2]
[375208441,1753587039309,-756.84,0.00019178,2]
[375208444,1753587039319,-460.0,0.00019178,2]
[375208446,1753587039327,-612.82,0.00019178,2]
[375208448,1753587039337,-460.0,0.00019178,2]
[375208450,1753587039346,-460.0,0.00019178,2]
[375208452,1753587039355,-460.0,0.00019178,2]
[375208454,1753587039364,-460.0,0.00019178,2]
[375208456,1753587039373,-152.12522495,0.00019178,2]
[375208458,1753587039382,-460.0,0.00019178,2]
[375208460,1753587039391,-2307.15,0.00019178,2]
[375208462,1753587039400,-853.64,0.00019178,2]
[375208464,1753587039409,-489.72443825,0.00019178,2]
[375208466,1753587039418,-605.49,0.00019178,2]
[375208468,1753587039428,-460.0,0.00019178,2]
[375208470,1753587039437,-4537.18,0.00019178,2]
[375208472,1753587039447,-460.0,0.00019178,2]
[375208474,1753587039455,-460.0,0.00019178,2]
[375208476,1753587039464,-460.0,0.00019178,2]
[375208478,1753587039473,-513.83,0.00019178,2]
[375208480,1753587039482,-460.0,0.00019178,2]
[375208482,1753587039492,-460.0,0.00019178,2]
[375208484,1753587039501,-463.13712576,0.00019178,2]
[375208486,1753587039510,-460.0,0.00019178,2]
[375208488,1753587039520,-659.41,0.00019178,2]
[375208490,1753587039529,-460.0,0.00019178,2]
[375208492,1753587039538,-2332.97,0.00019178,2]
[375208494,1753587039548,-1540.54,0.00019178,2]
[375208496,1753587039557,-462.16988816,0.00019178,2]
[375208498,1753587039566,-1845.56,0.00019178,2]
[375208500,1753587039575,-460.0,0.00019178,2]
[375208502,1753587039584,-589.49,0.00019178,2]
[375208504,1753587039593,-591.52981364,0.00019178,2]
[375208506,1753587039602,-460.0,0.00019178,2]
[375208508,1753587039611,-460.0,0.00019178,2]
[375208510,1753587039620,-460.0,0.00019178,2]
[375208512,1753587039630,-460.0,0.00019178,2]
[375208514,1753587039639,-460.0,0.00019178,2]
[375208516,1753587039648,-812.79,0.00019178,2]
[375208518,1753587039657,-546.22,0.00019178,2]
[375208520,1753587039666,-1545.63,0.00019178,2]
[375208522,1753587039676,-460.0,0.00019178,2]
[375208524,1753587039685,-460.0,0.00019178,2]
[375208526,1753587039694,-460.0,0.00019178,2]
[375208528,1753587039703,-1172.36,0.00019178,2]
[375208530,1753587039712,-460.0,0.00019178,2]
[375208532,1753587039721,-460.0,0.00019178,2]
[375208534,1753587039731,-460.0,0.00019178,2]
[375208536,1753587039740,-488.77,0.00019178,2]
[375208538,1753587039749,-470.3134269,0.00019178,2]
[375208540,1753587039759,-460.0,0.00019178,2]
[375208542,1753587039768,-620.9,0.00019178,2]
[375208544,1753587039777,-797.01,0.00019178,2]
[375208546,1753587039786,-2113.22,0.00019178,2]
[375208548,1753587039796,-460.0,0.00019178,2]
[375208550,1753587039806,-460.0,0.00019178,2]
[375208552,1753587039817,-1071.29,0.00019178,2]
[375208554,1753587039826,-460.0,0.00019178,2]
[375208556,1753587039835,-460.0,0.00019178,2]
[375208558,1753587039844,-460.0,0.00019178,2]
[375208560,1753587039853,-641.33,0.00019178,2]
[375208563,1753587039867,-753.17,0.00019178,2]
[375208565,1753587039876,-460.0,0.00019178,2]
[375208567,1753587039886,-789.37,0.00019178,2]
[375208569,1753587039895,-460.0,0.00019178,2]
[375208571,1753587039904,-460.0,0.00019178,2]
[375208573,1753587039914,-480.97745307,0.00019178,2]
[375208575,1753587039924,-460.0,0.00019178,2]
[375208577,1753587039933,-460.0,0.00019178,2]
[375208579,1753587039943,-460.0,0.00019178,2]
[375208581,1753587039952,-460.0,0.00019178,2]
[375208583,1753587039962,-320.6326763,0.00019178,2]
[375208585,1753587039972,-662.11,0.00019178,2]
[375208587,1753587039981,-460.0,0.00019178,2]
[375208589,1753587039991,-460.0,0.00019178,2]
[375208591,1753587040001,-460.0,0.00019178,2]
[375208593,1753587040010,-587.39,0.00019178,2]
[375208595,1753587040019,-1662.19,0.00019178,2]
[375208597,1753587040028,-182.07018636,0.00019178,2]
[375208599,1753587040038,-460.0,0.00019178,2]
[375208601,1753587040047,-660.43,0.00019178,2]
[375208603,1753587040056,-518.21,0.00019178,2]
[375208605,1753587040066,-460.0,0.00019178,2]
[375208607,1753587040075,-460.0,0.00019178,2]
[375208609,1753587040084,-529.18,0.00019178,2]
[375208611,1753587040094,-460.0,0.00019178,2]
[375208612,1753587040103,-763.17,0.00019178,2]
[375208615,1753587040113,-701.18,0.00019178,2]
[375208616,1753587040122,-793.76,0.00019178,2]
[375208618,1753587040131,-460.0,0.00019178,2]
[375208620,1753587040141,-460.0,0.00019178,2]
[375208622,1753587040150,-316.13799227,0.00019277,2]
[375208624,1753587040160,-311.81695599,0.00019315,2]
[375208626,1753587040173,-100000.0,0.00019329,2]
[375208628,1753587040182,-1008.23729823,0.00019352,2]
[375208630,1753587040193,-500.0,0.00019373,2]
[375208631,1753587040202,-292.8985634,0.00019452,2]
[375208632,1753587040211,-460.0,0.00019452,2]
[375208633,1753587040220,-460.0,0.00019452,2]
[375208634,1753587040230,-460.0,0.00019452,2]
[375208635,1753587040239,-460.0,0.00019452,2]
[375208636,1753587040249,-460.0,0.00019452,2]
[375208637,1753587040258,-463.06496711,0.00019452,2]
[375208638,1753587040267,-460.0,0.00019452,2]
[375208639,1753587040276,-460.0,0.00019452,2]
[375208640,1753587040285,-461.27907957,0.00019452,2]
[375208641,1753587040294,-460.0,0.00019452,2]
[375208642,1753587040304,-460.0,0.00019452,2]
[375208643,1753587040314,-460.0,0.00019452,2]
[375208644,1753587040323,-460.0,0.00019452,2]
[375208645,1753587040332,-460.0,0.00019452,2]
[375208646,1753587040341,-2236.55,0.00019452,2]
[375208647,1753587040350,-478.27,0.00019452,2]
[375208648,1753587040359,-718.26,0.00019452,2]
[375208650,1753587040472,-460.0,0.00019452,2]
[375208652,1753587040481,-460.0,0.00019452,2]
[375208654,1753587040491,-460.0,0.00019452,2]
[375208656,1753587040500,-460.0,0.00019452,2]
[375208658,1753587040510,-460.0,0.00019452,2]
[375208660,1753587040519,-2902.9,0.00019452,2]
[375208662,1753587040529,-460.0,0.00019452,2]
[375208664,1753587040540,-460.0,0.00019452,2]
[375208666,1753587040549,-460.0,0.00019452,2]
[375208668,1753587040559,-460.0,0.00019452,2]
[375208670,1753587040568,-460.0,0.00019452,2]
[375208672,1753587040577,-988.28,0.00019452,2]
[375208674,1753587040586,-471.63583641,0.00019452,2]
[375208676,1753587040595,-460.0,0.00019452,2]
[375208678,1753587040604,-460.0,0.00019452,2]
[375208680,1753587040613,-460.0,0.00019452,2]
[375208682,1753587040622,-460.0,0.00019452,2]
[375208684,1753587040631,-460.0,0.00019452,2]
[375208686,1753587040640,-460.0,0.00019452,2]
[375208688,1753587040651,-460.0,0.00019452,2]
[375208690,1753587040660,-460.0,0.00019452,2]
[375208692,1753587040669,-490.22,0.00019452,2]
[375208694,1753587040678,-462.63106615,0.00019452,2]
[375208696,1753587040688,-460.0,0.00019452,2]
[375208698,1753587040697,-651.13,0.00019452,2]
[375208700,1753587040707,-806.48,0.00019452,2]
[375208702,1753587040717,-460.0,0.00019452,2]
[375208704,1753587040726,-472.65367511,0.00019452,2]
[375208706,1753587040735,-558.52710415,0.00019452,2]
[375208708,1753587040745,-3587.13,0.00019452,2]
[375208710,1753587040754,-460.0,0.00019452,2]
[375208712,1753587040764,-460.0,0.00019452,2]
[375208714,1753587040773,-557.95,0.00019452,2]
[375208716,1753587040783,-460.0,0.00019452,2]
[375208718,1753587040792,-460.0,0.00019452,2]
[375208720,1753587040802,-558.99,0.00019452,2]
[375208722,1753587040811,-460.0,0.00019452,2]
[375208724,1753587040820,-460.0,0.00019452,2]
[375208726,1753587040829,-424.26528013,0.00019452,2]
[375208728,1753587040838,-837.57,0.00019452,2]
[375208730,1753587040847,-460.0,0.00019452,2]
[375208732,1753587040856,-460.0,0.00019452,2]
[375208734,1753587040865,-387.34693302,0.00019452,2]
[375208736,1753587040875,-460.0,0.00019452,2]
[375208738,1753587040884,-460.0,0.00019452,2]
[375208740,1753587040895,-2201.77,0.00019452,2]
[375208743,1753587040904,-460.0,0.00019452,2]
[375208745,1753587040914,-200.96238211,0.00019452,2]
[375208746,1753587040923,-608.88,0.00019452,2]
[375208748,1753587040933,-460.0,0.00019452,2]
[375208750,1753587040942,-460.0,0.00019452,2]
[375208753,1753587040951,-433.05266839,0.00019452,2]
[375208754,1753587040961,-460.0,0.00019452,2]
[375208757,1753587040970,-460.0,0.00019452,2]
[375208759,1753587040979,-460.0,0.00019452,2]
[375208761,1753587040989,-460.0,0.00019452,2]
[375208763,1753587040998,-473.02162169,0.00019452,2]
[375208765,1753587041007,-460.0,0.00019452,2]